Workbook

Sheet Notes
A1: Please read before using spreadsheet
A3: Updating forecast for new financial year
A4: 'Data' sheet
A5: Enter the historical monthly actual spend (£s) for the year mentioned in column heading
A6: Enter the total cumulative policy/local adjustments (£) that apply for each month in the year mentioned.
A7: If you don't know of any policy/local adjustments, enter the same amount as March in the previous year for all months in the last column.
A8: For more information on the cumulative policy/local adjustments see the accompanying guide.
A9: Do not cut and paste data within this workbook. You can copy data in from another workbook if needed.
A10: Please note, if one yellow cell is left blank before the curretn year, the forecast will not run and a message will appear.
A12: 'Forecast' sheet
A13: Once all data is filled in, click the button 'Update regression for new financial year'.
A14: This will automatically calculate the predicted spend for each month and end of year forecast. The regression for this forecast is based on the previous years data.
A15: If the forecast column is blank and you haven't received a pop up window informing that data is missing, then press F9. For the forecast to automatically appear, calculations need to be on automatic. To do this, go to the 'Options' menu under the 'Tools' bar, then click on the 'Calculations' tab and select the 'Automatic' box and click 'OK'.
A17: 'Forecast Updated' sheet
A18: To calculate the predicted spend for future months in 2021/22 taking into account the data for the months in 2021/22 already passed, click the button 'Update regression for new financial year taking into account most recent months'.
A19: This calculates the regression from previous years data along with the 2021/22 months with data. Therefore, the months already passed in 2021/22 will not have a predicted spend.
A20: If the forecast column is blank follow the instructions under the 'Forecast' sheet heading above.
A22: Entering data for current financial year
A23: 'Data' sheet
A24: When you know the monthly spend for the previous month, enter this value in the last column of the 'Actual Spend' table.
A25: If there have been any policy adjustments in this month, add them to the last column of the 'Policy Adjustment' table.
A27: 'Forecast' and 'Forecast Updated' sheet
A28: The monthly spend will now be included in this sheet.
A29: The end of year forecast is calculated using the actual monthly spend for previous months and the predicted spend for future months.
A32: For more information, see the Guide on running the Forecast Template.
A34: Regression Statistics
A35: The R square value is the variation between the regression line and the actual data points. It is used to say how suitable the regression is for forecasting, the closer to 1, the more suitable the regression is.
A36: The R square value for regression on 'Forecast' sheet is: | F36: The R square value for regression on 'Forecast Updated' sheet is:
B37: =IF(Forecast!J7="","",Forecast!J7) ->  | H37: =IF('Forecast Updated'!J10="","",'Forecast Updated'!J10) -> 
A39: If the P value is smaller than either 0.05 or 0.01, depending on the confidence level, the variables are said to be significant to the regression.
A40: P values for the regression on 'Forecast' sheet | F40: P values for the regression on 'Forecast Updated' sheet
A41: Dispensing days | B41: =IF(Forecast!M20="","",Forecast!M20) ->  | F41: Dispensing days | H41: =IF('Forecast Updated'!M23="","",'Forecast Updated'!M23) -> 
A42: Year | B42: =IF(Forecast!M21="","",Forecast!M21) ->  | F42: Year | H42: =IF('Forecast Updated'!M24="","",'Forecast Updated'!M24) -> 
A43: Month | B43: =IF(Forecast!M22="","",Forecast!M22) ->  | F43: Month | H43: =IF('Forecast Updated'!M25="","",'Forecast Updated'!M25) -> 

Sheet Forecast
A1: Forecast that fixes the regression at the start of the year
A3: Forecast for monthly and end of year spend for 2021/22 | I3: SUMMARY OUTPUT
I5: Regression Statistics
A6: Month | B6: Actual monthly spend (£) | D6: Predicted monthly spend (£) | F6: End of year forecast (£) | G6: Updated end of year forecast % change from 2020/21
A7: April | B7: =IF(Data!G7="","",Data!G7) ->  | D7: =IF($I$5="","",'Regression Feed xyrs'!G64) -> 0 | F7: =IF(B7="","",SUM($B$7:B7)+SUM(D8:$D$18)) ->  | G7: =IF(F7="","",(F7-$B$31)/$B$31) -> 
A8: May | B8: =IF(Data!G8="","",Data!G8) ->  | D8: =IF($I$5="","",'Regression Feed xyrs'!G65) -> 0 | F8: =IF(B8="","",SUM($B$7:B8)+SUM(D9:$D$18)) ->  | G8: =IF(F8="","",(F8-$B$31)/$B$31) -> 
A9: June | B9: =IF(Data!G9="","",Data!G9) ->  | D9: =IF($I$5="","",'Regression Feed xyrs'!G66) -> 0 | F9: =IF(B9="","",SUM($B$7:B9)+SUM(D10:$D$18)) -> 
A10: July | B10: =IF(Data!G10="","",Data!G10) ->  | D10: =IF($I$5="","",'Regression Feed xyrs'!G67) -> 0 | F10: =IF(B10="","",SUM($B$7:B10)+SUM(D11:$D$18)) -> 
A11: August | B11: =IF(Data!G11="","",Data!G11) ->  | D11: =IF($I$5="","",'Regression Feed xyrs'!G68) -> 0 | F11: =IF(B11="","",SUM($B$7:B11)+SUM(D12:$D$18)) -> 
A12: September | B12: =IF(Data!G12="","",Data!G12) ->  | D12: =IF($I$5="","",'Regression Feed xyrs'!G69) -> 0 | F12: =IF(B12="","",SUM($B$7:B12)+SUM(D13:$D$18)) -> 
A13: October | B13: =IF(Data!G13="","",Data!G13) ->  | D13: =IF($I$5="","",'Regression Feed xyrs'!G70) -> 0 | F13: =IF(B13="","",SUM($B$7:B13)+SUM(D14:$D$18)) -> 
A14: November | B14: =IF(Data!G14="","",Data!G14) ->  | D14: =IF($I$5="","",'Regression Feed xyrs'!G71) -> 0 | F14: =IF(B14="","",SUM($B$7:B14)+SUM(D15:$D$18)) -> 
A15: December | B15: =IF(Data!G15="","",Data!G15) ->  | D15: =IF($I$5="","",'Regression Feed xyrs'!G72) -> 0 | F15: =IF(B15="","",SUM($B$7:B15)+SUM(D16:$D$18)) -> 
A16: January | B16: =IF(Data!G16="","",Data!G16) ->  | D16: =IF($I$5="","",'Regression Feed xyrs'!G73) -> 0 | F16: =IF(B16="","",SUM($B$7:B16)+SUM(D17:$D$18)) -> 
A17: February | B17: =IF(Data!G17="","",Data!G17) ->  | D17: =IF($I$5="","",'Regression Feed xyrs'!G74) -> 0 | F17: =IF(B17="","",SUM($B$7:B17)+SUM(D18:$D$18)) -> 
A18: March | B18: =IF(Data!G18="","",Data!G18) ->  | D18: =IF($I$5="","",'Regression Feed xyrs'!G75) -> 0
C19: =IF(AND(B7="",D7=""),"",IF(AND(B7="",D7<>""),"End of Year","")) -> End of Year | D19: =IF(AND(B7="",D7=""),"",IF(AND(B7="",D7<>""),SUM(D7:D18),"")) -> 0
A26: Year | B26: End of year totals | C26: % change
A27: 2016/17 | B27: =SUM(Data!B7:B18) -> 0
A28: 2017/18 | B28: =SUM(Data!C7:C18) -> 0 | C28: =IF(B27=0,"",(B28-B27)/B27) -> 
A29: 2018/19 | B29: =SUM(Data!D7:D18) -> 0 | C29: =IF(B28=0,"",(B29-B28)/B28) -> 
A30: 2019/20 | B30: =SUM(Data!E7:E18) -> 0 | C30: =IF(B29=0,"",(B30-B29)/B29) -> 
A31: 2020/21 | B31: =SUM(Data!F7:F18) -> 0 | C31: =IF(B30=0,"",(B31-B30)/B30) -> 
A32: 2021/22 | B32: =IF(AND(D19="",F7=""),"",IF(D19="",OFFSET(F6,12-A34,0),D19)) -> 0 | C32: =IF(B31=0,"",IF(B32="","",(B32-B31)/B31)) -> 
A34: =COUNTBLANK(F7:F18) -> 12 | E34: Adjusting for rounding error in sum
A35: Profile excluding drugs costs previously met centrally | E35: =1-D48 -> 
A36: 2021/22 | B36: Profile | C36: Rounded | D36: Cumulative profile | E36: Adjusted profile | F36: Cumulative
A37: April | B37: =B7/$B$32 ->  | C37: =ROUND(B37,4) ->  | D37: =C37 ->  | E37: =C37+($E$35/12) ->  | F37: =ROUND(E37,4) ->  | G37: =F37 -> 
A38: May | B38: =B8/$B$32 ->  | C38: =ROUND(B38,4) ->  | D38: =D37+C38 ->  | E38: =C38+($E$35/12) ->  | F38: =ROUND(E38,4) ->  | G38: =G37+F38 -> 
A39: June | D39: =D38+C39 -> 
A40: July | D40: =D39+C40 -> 
A41: August
A42: September
A43: October | F43: =ROUNDDOWN(E43,4) -> 
A44: November | B44: =D14/$B$32 -> 
A45: December | B45: =D15/$B$32 -> 
A46: January | B46: =D16/$B$32 -> 
A47: February
A48: March | D48: =D47+C48 -> 
B49: =SUM(B37:B48) -> 

Sheet Forecast Updated
A1: Forecast which updates the regression as the year progresses
A3: Forecast for monthly and end of year spend for 2021/22
A7: Month | B7: Actual monthly spend (£) | D7: Predicted monthly spend (£) | F7: End of year forecast (£) | G7: Updated end of year forecast % change from 2020/21
A8: April | B8: =IF(Data!G7="","",Data!G7) ->  | D8: =IF($I$6="","",'Regression Feed FUpdated'!G64) ->  | F8: =IF(D9="","",IF(B8="","",SUM($B$8:B8)+SUM(D9:$D$19))) ->  | G8: =IF(F8="","",(F8-$B$32)/$B$32) -> 
A9: May | B9: =IF(Data!G8="","",Data!G8) ->  | D9: =IF($I$6="","",'Regression Feed FUpdated'!G65) ->  | F9: =IF(D10="","",IF(B9="","",SUM($B$8:B9)+SUM(D10:$D$19))) ->  | G9: =IF(F9="","",(F9-$B$32)/$B$32) -> 
A10: June | B10: =IF(Data!G9="","",Data!G9) ->  | D10: =IF($I$6="","",'Regression Feed FUpdated'!G66) ->  | F10: =IF(D11="","",IF(B10="","",SUM($B$8:B10)+SUM(D11:$D$19))) -> 
A11: July | B11: =IF(Data!G10="","",Data!G10) ->  | D11: =IF($I$6="","",'Regression Feed FUpdated'!G67) ->  | F11: =IF(D12="","",IF(B11="","",SUM($B$8:B11)+SUM(D12:$D$19))) -> 
A12: August | B12: =IF(Data!G11="","",Data!G11) ->  | D12: =IF($I$6="","",'Regression Feed FUpdated'!G68) ->  | F12: =IF(D13="","",IF(B12="","",SUM($B$8:B12)+SUM(D13:$D$19))) -> 
A13: September | B13: =IF(Data!G12="","",Data!G12) ->  | D13: =IF($I$6="","",'Regression Feed FUpdated'!G69) ->  | F13: =IF(D14="","",IF(B13="","",SUM($B$8:B13)+SUM(D14:$D$19))) -> 
A14: October | B14: =IF(Data!G13="","",Data!G13) ->  | D14: =IF($I$6="","",'Regression Feed FUpdated'!G70) ->  | F14: =IF(D15="","",IF(B14="","",SUM($B$8:B14)+SUM(D15:$D$19))) -> 
A15: November | B15: =IF(Data!G14="","",Data!G14) ->  | D15: =IF($I$6="","",'Regression Feed FUpdated'!G71) ->  | F15: =IF(D16="","",IF(B15="","",SUM($B$8:B15)+SUM(D16:$D$19))) -> 
A16: December | B16: =IF(Data!G15="","",Data!G15) ->  | D16: =IF($I$6="","",'Regression Feed FUpdated'!G72) ->  | F16: =IF(D17="","",IF(B16="","",SUM($B$8:B16)+SUM(D17:$D$19))) -> 
A17: January | B17: =IF(Data!G16="","",Data!G16) ->  | D17: =IF($I$6="","",'Regression Feed FUpdated'!G73) ->  | F17: =IF(D18="","",IF(B17="","",SUM($B$8:B17)+SUM(D18:$D$19))) -> 
A18: February | B18: =IF(Data!G17="","",Data!G17) ->  | D18: =IF($I$6="","",'Regression Feed FUpdated'!G74) ->  | F18: =IF(D19="","",IF(B18="","",SUM($B$8:B18)+SUM(D19:$D$19))) -> 
A19: March | B19: =IF(Data!G18="","",Data!G18) ->  | D19: =IF($I$6="","",'Regression Feed FUpdated'!G75) ->  | F19: =IF(D20="","",IF(B19="","",SUM($B$8:B19)+SUM(D$19:$D20))) -> 
C20: =IF(AND(B8="",D8=""),"",IF(AND(B8="",D8<>""),"End of Year","")) ->  | D20: =IF(AND(B8="",D8=""),"",IF(AND(B8="",D8<>""),SUM(D8:D19),"")) -> 
A27: Year | B27: End of year totals | C27: % change
A28: 2016/17 | B28: =SUM(Data!B7:B18) -> 0
A29: 2017/18 | B29: =SUM(Data!C7:C18) -> 0 | C29: =IF(B28=0,"",(B29-B28)/B28) -> 
A30: 2018/19 | B30: =SUM(Data!D7:D18) -> 0 | C30: =IF(B29=0,"",(B30-B29)/B29) -> 
A31: 2019/20 | B31: =SUM(Data!E7:E18) -> 0 | C31: =IF(B30=0,"",(B31-B30)/B30) -> 
A32: 2020/21 | B32: =SUM(Data!F7:F18) -> 0 | C32: =IF(B31=0,"",(B32-B31)/B31) -> 
A33: 2021/22 | B33: =IF(D20="",OFFSET(F7,A34,0),D20) ->  | C33: =IF(B32=0,"",IF(B33="","",(B33-B32)/B32)) -> 
A34: =COUNTBLANK(D8:D19) -> 12 | E34: Adjusting for rounding error in sum
A35: Profile excluding drugs costs previously met centrally | E35: =1-D48 -> 
A36: 2021/22 | C36: Profile | D36: Cumulative profile | E36: Adjusted profile | F36: Rounded | G36: Cumulative
A37: April | B37: =B8/$B$33 ->  | C37: =ROUND(B37,4) ->  | D37: =C37 ->  | E37: =B37+$E$35/12 ->  | F37: =ROUND(E37,4) ->  | G37: =F37 -> 
A38: May | B38: =B9/$B$33 ->  | C38: =ROUND(B38,4) ->  | D38: =D37+C38 ->  | E38: =B38+$E$35/12 ->  | F38: =ROUND(E38,4) ->  | G38: =G37+F38 -> 
A39: June | D39: =D38+C39 ->  | G39: =G38+F39 -> 
A40: July
A41: August
A42: September
A43: October
A44: November | B44: =D15/$B$33 -> 
A45: December | B45: =D16/$B$33 -> 
A46: January
A47: February
A48: March | G48: =G47+F48 -> 
B49: =SUM(B37:B48) ->  | F49: =SUM(F37:F48) -> 

Sheet Data
A1: Data entry sheet
A3: Actual monthly drugs spend (£) | D3: =IF(OR(H7<>"",H8<>"",H9<>"",H10<>"",H11<>"",H12<>"",H13<>"",H14<>"",H15<>"",H16<>"",H17<>"",H18<>"",H24<>"",H25<>"",H26<>"",H27<>"",H28<>"",H29<>"",H30<>"",H31<>"",H32<>"",H33<>"",H34<>"",H35<>""),"Data missing, forecast will not run","") -> Data missing, forecast will not run
B5: Year
A6: Month | B6: 2016/17 | C6: 2017/18 | D6: 2018/19 | E6: 2019/20 | F6: 2020/21 | G6: 2021/22
A7: April | H7: =IF(OR(B7="",C7="",D7="",E7="",F7=""),"Data missing, please enter value in blank cell between B5 and F5","") -> Data missing, please enter value in blank cell between B5 and F5
A8: May | H8: =IF(OR(B8="",C8="",D8="",E8="",F8=""),"Data missing, please enter value in blank cell between B6 and F6","") -> Data missing, please enter value in blank cell between B6 and F6
A9: June | H9: =IF(OR(B9="",C9="",D9="",E9="",F9=""),"Data missing, please enter value in blank cell between B7 and F7","") -> Data missing, please enter value in blank cell between B7 and F7
A10: July | H10: =IF(OR(B10="",C10="",D10="",E10="",F10=""),"Data missing, please enter value in blank cell between B8 and F8","") -> Data missing, please enter value in blank cell between B8 and F8
A11: August | H11: =IF(OR(B11="",C11="",D11="",E11="",F11=""),"Data missing, please enter value in blank cell between B9 and F9","") -> Data missing, please enter value in blank cell between B9 and F9
A12: September | H12: =IF(OR(B12="",C12="",D12="",E12="",F12=""),"Data missing, please enter value in blank cell between B10 and F10","") -> Data missing, please enter value in blank cell between B10 and F10
A13: October | H13: =IF(OR(B13="",C13="",D13="",E13="",F13=""),"Data missing, please enter value in blank cell between B11 and F11","") -> Data missing, please enter value in blank cell between B11 and F11
A14: November | H14: =IF(OR(B14="",C14="",D14="",E14="",F14=""),"Data missing, please enter value in blank cell between B12 and F12","") -> Data missing, please enter value in blank cell between B12 and F12
A15: December | H15: =IF(OR(B15="",C15="",D15="",E15="",F15=""),"Data missing, please enter value in blank cell between B13 and F13","") -> Data missing, please enter value in blank cell between B13 and F13
A16: January | H16: =IF(OR(B16="",C16="",D16="",E16="",F16=""),"Data missing, please enter value in blank cell between B14 and F14","") -> Data missing, please enter value in blank cell between B14 and F14
A17: February | H17: =IF(OR(B17="",C17="",D17="",E17="",F17=""),"Data missing, please enter value in blank cell between B15 and F15","") -> Data missing, please enter value in blank cell between B15 and F15
A18: March | H18: =IF(OR(B18="",C18="",D18="",E18="",F18=""),"Data missing, please enter value in blank cell between B16 and F16","") -> Data missing, please enter value in blank cell between B16 and F16
A20: Policy/local adjustments (£)
B22: Year
A23: Month | B23: 2016/17 | C23: 2017/18 | D23: 2018/19 | E23: 2019/20 | F23: 2020/21 | G23: 2021/22
A24: April | H24: =IF(OR(B24="",C24="",D24="",E24="",F24="",G24=""),"Data missing, please enter value in blank cell between B22 and G22","") -> Data missing, please enter value in blank cell between B22 and G22
A25: May | H25: =IF(OR(B25="",C25="",D25="",E25="",F25="",G25=""),"Data missing, please enter value in blank cell between B23 and G23","") -> Data missing, please enter value in blank cell between B23 and G23
A26: June | H26: =IF(OR(B26="",C26="",D26="",E26="",F26="",G26=""),"Data missing, please enter value in blank cell between B24 and G24","") -> Data missing, please enter value in blank cell between B24 and G24
A27: July | H27: =IF(OR(B27="",C27="",D27="",E27="",F27="",G27=""),"Data missing, please enter value in blank cell between B25 and G25","") -> Data missing, please enter value in blank cell between B25 and G25
A28: August | H28: =IF(OR(B28="",C28="",D28="",E28="",F28="",G28=""),"Data missing, please enter value in blank cell between B26 and G26","") -> Data missing, please enter value in blank cell between B26 and G26
A29: September | H29: =IF(OR(B29="",C29="",D29="",E29="",F29="",G29=""),"Data missing, please enter value in blank cell between B27 and G27","") -> Data missing, please enter value in blank cell between B27 and G27
A30: October | H30: =IF(OR(B30="",C30="",D30="",E30="",F30="",G30=""),"Data missing, please enter value in blank cell between B28 and G28","") -> Data missing, please enter value in blank cell between B28 and G28
A31: November | H31: =IF(OR(B31="",C31="",D31="",E31="",F31="",G31=""),"Data missing, please enter value in blank cell between B29 and G29","") -> Data missing, please enter value in blank cell between B29 and G29
A32: December | H32: =IF(OR(B32="",C32="",D32="",E32="",F32="",G32=""),"Data missing, please enter value in blank cell between B30 and G30","") -> Data missing, please enter value in blank cell between B30 and G30
A33: January | H33: =IF(OR(B33="",C33="",D33="",E33="",F33="",G33=""),"Data missing, please enter value in blank cell between B31 and G31","") -> Data missing, please enter value in blank cell between B31 and G31
A34: February | H34: =IF(OR(B34="",C34="",D34="",E34="",F34="",G34=""),"Data missing, please enter value in blank cell between B32 and G32","") -> Data missing, please enter value in blank cell between B32 and G32
A35: March | H35: =IF(OR(B35="",C35="",D35="",E35="",F35="",G35=""),"Data missing, please enter value in blank cell between B33 and G33","") -> Data missing, please enter value in blank cell between B33 and G33

Sheet Policy - updated
A1: Policy Impact
A4: Date | B4: Type | C4: Impact per year | D4: Per month | E4: Net impact since April 2015
A5: 2003-12-01 | B5: 1st generic | C5: -150 | D5: =C5/12 -> -12.5
A6: 2004-10-01 | B6: 2nd generic | C6: -150 | D6: =C6/12 -> -12.5
A7: 2005-02-01 | B7: PPRS 05 | C7: =-1800/5 -> -360 | D7: -30
A8: 2005-04-01 | B8: CatM1 | C8: -300 | D8: -25
A9: 2006-10-01 | B9: CatM2 | C9: -300 | D9: -25
A10: 2007-07-01 | B10: CatM technical adju | C10: -120 | D10: -10
A11: 2007-10-01 | B11: CatM3 | C11: -400 | D11: -33.33333333
A12: 2008-10-01 | B12: CatM4 | C12: -130 | D12: -10.83333333
A13: 2009-03-01 | B13: PPRS 09 (-3.9%) | C13: -160 | D13: -13.33333333
A14: 2009-10-01 | B14: CatM5 | C14: -80 | D14: -6.666666667
A15: 2010-02-01 | B15: PPRS 09 (-1.9%) | C15: -80 | D15: -6.666666667
A16: 2010-10-01 | B16: CatM6 | C16: -240 | D16: -20
A17: 2011-01-01 | B17: PPRS09 (+0.1%) | C17: 5.7 | D17: 0.475
A18: 2011-04-01 | B18: CatM7 | C18: -90 | D18: -7.5
A19: 2011-04-01 | B19: QP indicators & QIPP | C19: -150 | D19: -12.5
A20: 2011-10-01 | B20: CatM8 | C20: -156 | D20: -13
A21: 2012-01-01 | B21: PPRS09 (+0.2%) | C21: =2*C17 -> 11.4 | D21: 0.95
A22: 2012-04-01 | B22: CatM9 | C22: -40 | D22: -3.333333333
A23: 2012-04-01 | B23: QP indicators & QIPP | C23: -100 | D23: -8.333333333
A24: 2012-06-01 | B24: Atorvastatin | C24: -203 | D24: -16.91666667
A25: 2012-10-01 | B25: CatM10 | C25: -290 | D25: -24.16666667
A26: 2013-01-01 | B26: PPRS09 (+0.2%) | C26: =2*C17 -> 11.4 | D26: 0.95
A27: 2013-04-01 | B27: CatM | C27: 0 | D27: 0
A28: 2013-10-01 | B28: CatM11 | C28: -80 | D28: -6.666666667
A29: 2014-04-01 | B29: CatM | C29: -120 | D29: -10
A30: 2014-10-01 | B30: CatM | C30: 120 | D30: 10
A31: 2016-01-01 | B31: CatM | C31: -45 | D31: =C31/3 -> -15 | E31: =SUM(D31:$D$31) -> -15
A32: 2016-06-01 | B32: CatM | C32: -144 | D32: -12 | E32: =SUM(D$31:$D32) -> -27
A33: 2017-08-01 | B33: CatM | C33: -144 | D33: -15 | E33: =SUM(D$31:$D33) -> -42
A34: 2018-08-01 | B34: CatM | C34: =12*D34 -> 180 | D34: 15 | E34: =SUM(D$31:$D34) -> -27
A35: 2018-11-01 | B35: CatM | C35: =12*D35 -> -120 | D35: -10 | E35: =SUM(D$31:$D35) -> -37
A36: 2019-04-01 | B36: CatM | C36: 120 | D36: 10 | E36: =SUM(D$31:$D36) -> -27
A37: 2019-08-01 | B37: CatM | C37: 180 | D37: 15 | E37: =SUM(D$31:$D37) -> -12
A38: 2020-06-01 | B38: CatM | C38: =12*D38 -> 180 | D38: 15 | E38: =SUM(D$31:$D38) -> 3
A39: 2020-10-01 | B39: CatM | C39: -93.2 | D39: =C39/12 -> -7.766666667 | E39: =SUM(D$31:$D39) -> -4.766666667
A40: 2021-01-01 | B40: CatM | C40: 108.8 | D40: =C40/12 -> 9.066666667 | E40: =SUM(D$31:$D40) -> 4.3
A41: 2021-04-01 | B41: CatM | C41: 41.6 | D41: 3.466666667 | E41: =SUM(D$31:$D41) -> 7.766666667
A42: 2021-07-01 | B42: CatM | C42: -195.6 | D42: -16.3 | E42: =SUM(D$31:$D42) -> -8.533333333
A43: 2021-10-01 | B43: CatM | C43: -107.2 | D43: -8.933333333 | E43: =SUM(D$31:$D43) -> -17.46666667
A44: 2022-01-01 | B44: CatM | C44: -197.2 | D44: -16.43333333 | E44: =SUM(D$31:$D44) -> -33.9
A53: https://psnc.org.uk/funding-and-statistics/funding-distribution/summary-of-funding-changes/
A55: Contact: Bayan Amin (bayan.amin@dhsc.gov.uk)
A57: Description of Cateogry M: https://psnc.org.uk/funding-and-statistics/funding-distribution/retained-margin-category-m/

Sheet Month Rank
A1: Ranking Months for forecast
B3: =Data!B5 -> Year
A4: =Data!A6 -> Month | B4: =Data!B6 -> 2016/17 | C4: =Data!C6 -> 2017/18 | D4: =Data!D6 -> 2018/19 | E4: =Data!E6 -> 2019/20 | F4: =Data!F6 -> 2020/21 | G4: Total across 5 years | H4: Month Rank
A5: =Data!A7 -> April | B5: =Data!B7/'Dispensing Days'!K4 -> 0 | C5: =Data!C7/'Dispensing Days'!L4 -> 0 | D5: =Data!D7/'Dispensing Days'!M4 -> 0 | E5: =Data!E7/'Dispensing Days'!N4 -> 0 | F5: =Data!F7/'Dispensing Days'!O4 -> 0 | G5: =SUM(B5:F5) -> 0 | H5: =RANK(G5,$G$5:$G$16,1) -> 1
A6: =Data!A8 -> May | B6: =Data!B8/'Dispensing Days'!K5 -> 0 | C6: =Data!C8/'Dispensing Days'!L5 -> 0 | D6: =Data!D8/'Dispensing Days'!M5 -> 0 | E6: =Data!E8/'Dispensing Days'!N5 -> 0 | F6: =Data!F8/'Dispensing Days'!O5 -> 0 | G6: =SUM(B6:F6) -> 0 | H6: =RANK(G6,$G$5:$G$16,1) -> 1
A7: =Data!A9 -> June | B7: =Data!B9/'Dispensing Days'!K6 -> 0 | C7: =Data!C9/'Dispensing Days'!L6 -> 0 | D7: =Data!D9/'Dispensing Days'!M6 -> 0 | E7: =Data!E9/'Dispensing Days'!N6 -> 0 | F7: =Data!F9/'Dispensing Days'!O6 -> 0 | G7: 0 | H7: 1
A8: =Data!A10 -> July | B8: =Data!B10/'Dispensing Days'!K7 -> 0 | C8: =Data!C10/'Dispensing Days'!L7 -> 0 | D8: =Data!D10/'Dispensing Days'!M7 -> 0 | E8: =Data!E10/'Dispensing Days'!N7 -> 0 | F8: =Data!F10/'Dispensing Days'!O7 -> 0 | G8: 0 | H8: 1
A9: =Data!A11 -> August | B9: =Data!B11/'Dispensing Days'!K8 -> 0 | C9: =Data!C11/'Dispensing Days'!L8 -> 0 | D9: =Data!D11/'Dispensing Days'!M8 -> 0 | E9: =Data!E11/'Dispensing Days'!N8 -> 0 | F9: =Data!F11/'Dispensing Days'!O8 -> 0 | G9: 0 | H9: 1
A10: =Data!A12 -> September | B10: =Data!B12/'Dispensing Days'!K9 -> 0 | C10: =Data!C12/'Dispensing Days'!L9 -> 0 | D10: =Data!D12/'Dispensing Days'!M9 -> 0 | E10: =Data!E12/'Dispensing Days'!N9 -> 0 | F10: =Data!F12/'Dispensing Days'!O9 -> 0 | G10: 0 | H10: 1
A11: =Data!A13 -> October | B11: =Data!B13/'Dispensing Days'!K10 -> 0 | C11: =Data!C13/'Dispensing Days'!L10 -> 0 | D11: =Data!D13/'Dispensing Days'!M10 -> 0 | E11: =Data!E13/'Dispensing Days'!N10 -> 0 | F11: =Data!F13/'Dispensing Days'!O10 -> 0 | G11: 0 | H11: 1
A12: =Data!A14 -> November | B12: =Data!B14/'Dispensing Days'!K11 -> 0 | C12: =Data!C14/'Dispensing Days'!L11 -> 0 | D12: =Data!D14/'Dispensing Days'!M11 -> 0 | E12: =Data!E14/'Dispensing Days'!N11 -> 0 | F12: =Data!F14/'Dispensing Days'!O11 -> 0 | G12: 0 | H12: 1
A13: =Data!A15 -> December | B13: =Data!B15/'Dispensing Days'!K12 -> 0 | C13: =Data!C15/'Dispensing Days'!L12 -> 0 | D13: =Data!D15/'Dispensing Days'!M12 -> 0 | E13: =Data!E15/'Dispensing Days'!N12 -> 0 | F13: =Data!F15/'Dispensing Days'!O12 -> 0 | G13: 0 | H13: 1
A14: =Data!A16 -> January | B14: =Data!B16/'Dispensing Days'!K13 -> 0 | C14: =Data!C16/'Dispensing Days'!L13 -> 0 | D14: =Data!D16/'Dispensing Days'!M13 -> 0 | E14: =Data!E16/'Dispensing Days'!N13 -> 0 | F14: =Data!F16/'Dispensing Days'!O13 -> 0 | G14: 0 | H14: 1
A15: =Data!A17 -> February | B15: =Data!B17/'Dispensing Days'!K14 -> 0 | C15: =Data!C17/'Dispensing Days'!L14 -> 0 | D15: =Data!D17/'Dispensing Days'!M14 -> 0 | E15: =Data!E17/'Dispensing Days'!N14 -> 0 | F15: =Data!F17/'Dispensing Days'!O14 -> 0 | G15: 0 | H15: 1
A16: =Data!A18 -> March | B16: =Data!B18/'Dispensing Days'!K15 -> 0 | C16: =Data!C18/'Dispensing Days'!L15 -> 0 | D16: =Data!D18/'Dispensing Days'!M15 -> 0 | E16: =Data!E18/'Dispensing Days'!N15 -> 0 | F16: =Data!F18/'Dispensing Days'!O15 -> 0 | G16: 0 | H16: 1

Sheet Dispensing Days
A1: Dispensing days
B3: 2005/06 | C3: 2006/07 | D3: 2007/08 | E3: 2008/09 | F3: 2009/10 | G3: 2010/11 | H3: 2011/12 | I3: 2012/13 | J3: 2013/14 | K3: 2014/15 | L3: 2015/16 | M3: 2016/17 | N3: 2017/18 | O3: 2018/19 | P3: 2019/20 | Q3: 2020/21 | R3: 2021/22
A4: April | B4: 26 | C4: 24 | D4: 23 | E4: 26 | F4: 24 | G4: 24 | H4: 23 | I4: 23 | J4: 25 | K4: 24 | L4: 24 | M4: 26 | N4: 23 | O4: 24 | P4: 24 | Q4: 24 | R4: 24
A5: May | B5: 24 | C5: 25 | D5: 25 | E5: 25 | F5: 24 | G5: 24 | H5: 24 | I5: 26 | J5: 25 | K5: 25 | L5: 24 | M5: 24 | N5: 25 | O5: 25 | P5: 25 | Q5: 24 | R5: 24
A6: June | B6: 26 | C6: 26 | D6: 26 | E6: 25 | F6: 26 | G6: 26 | H6: 26 | I6: 24 | J6: 25 | K6: 25 | L6: 26 | M6: 26 | N6: 26 | O6: 26 | P6: 25 | Q6: 26 | R6: 26
A7: July | B7: 26 | C7: 26 | D7: 26 | E7: 27 | F7: 27 | G7: 27 | H7: 26 | I7: 26 | J7: 27 | K7: 27 | L7: 27 | M7: 26 | N7: 26 | O7: 26 | P7: 27 | Q7: 27 | R7: 27
A8: August | B8: 26 | C8: 26 | D8: 26 | E8: 25 | F8: 25 | G8: 25 | H8: 26 | I8: 26 | J8: 26 | K8: 25 | L8: 25 | M8: 26 | N8: 26 | O8: 26 | P8: 26 | Q8: 25 | R8: 25
A9: September | B9: 26 | C9: 26 | D9: 25 | E9: 26 | F9: 26 | G9: 26 | H9: 26 | I9: 25 | J9: 25 | K9: 26 | L9: 26 | M9: 26 | N9: 26 | O9: 25 | P9: 25 | Q9: 26 | R9: 26
A10: October | B10: 26 | C10: 26 | D10: 27 | E10: 27 | F10: 27 | G10: 26 | H10: 26 | I10: 27 | J10: 27 | K10: 27 | L10: 27 | M10: 26 | N10: 26 | O10: 27 | P10: 27 | Q10: 27 | R10: 26
A11: November | B11: 26 | C11: 26 | D11: 26 | E11: 25 | F11: 25 | G11: 26 | H11: 26 | I11: 26 | J11: 26 | K11: 25 | L11: 25 | M11: 26 | N11: 26 | O11: 26 | P11: 26 | Q11: 25 | R11: 26
A12: December | B12: 24 | C12: 24 | D12: 24 | E12: 25 | F12: 24 | G12: 24 | H12: 25 | I12: 24 | J12: 24 | K12: 25 | L12: 24 | M12: 25 | N12: 24 | O12: 24 | P12: 24 | Q12: 24 | R12: 24
A13: January | B13: 25 | C13: 26 | D13: 26 | E13: 26 | F13: 25 | G13: 24 | H13: 25 | I13: 26 | J13: 26 | K13: 26 | L13: 25 | M13: 25 | N13: 26 | O13: 26 | P13: 26 | Q13: 25 | R13: 24
A14: February | B14: 24 | C14: 24 | D14: 25 | E14: 24 | F14: 24 | G14: 24 | H14: 25 | I14: 24 | J14: 24 | K14: 24 | L14: 25 | M14: 24 | N14: 24 | O14: 24 | P14: 25 | Q14: 24 | R14: 24
A15: March | B15: 27 | C15: 27 | D15: 24 | E15: 26 | F15: 27 | G15: 27 | H15: 27 | I15: 25 | J15: 26 | K15: 26 | L15: 25 | M15: 27 | N15: 26 | O15: 26 | P15: 26 | Q15: 27 | R15: 27

Sheet Regression Feed xyrs
A1: Feed for running regression
A3: year | B3: Month | C3: Historical | D3: Dispensing days | E3: year | F3: month | G3: Predicted spend
A4: =Data!B6 -> 2016/17 | B4: April | C4: =Data!B7+Data!B24 -> 0 | D4: =INDEX(DispensingDays,MATCH(B4,DDMonth,0),MATCH($A$4,DDYear,0)) -> 26 | E4: =IF(C4=0,0,1) -> 0 | F4: ='Month Rank'!H5 -> 1 | H4: =RANK(C4,$C$4:$C$15) -> 1
B5: May | C5: =Data!B8+Data!B25 -> 0 | D5: =INDEX(DispensingDays,MATCH(B5,DDMonth,0),MATCH($A$4,DDYear,0)) -> 24 | E5: =IF(C5=0,0,1) -> 0 | F5: ='Month Rank'!H6 -> 1 | H5: =RANK(C5,$C$4:$C$15) -> 1
B6: June | C6: =Data!B9+Data!B26 -> 0 | D6: 26 | E6: 0 | F6: ='Month Rank'!H7 -> 1 | H6: 1
B7: July | C7: =Data!B10+Data!B27 -> 0 | D7: 26 | E7: 0 | F7: ='Month Rank'!H8 -> 1 | H7: 1
B8: August | C8: =Data!B11+Data!B28 -> 0 | D8: 26 | E8: 0 | F8: ='Month Rank'!H9 -> 1 | H8: 1
B9: September | C9: =Data!B12+Data!B29 -> 0 | D9: 26 | E9: 0 | F9: ='Month Rank'!H10 -> 1 | H9: 1
B10: October | C10: =Data!B13+Data!B30 -> 0 | D10: 26 | E10: 0 | F10: ='Month Rank'!H11 -> 1 | H10: 1
B11: November | C11: =Data!B14+Data!B31 -> 0 | D11: 26 | E11: 0 | F11: ='Month Rank'!H12 -> 1 | H11: 1
B12: December | C12: =Data!B15+Data!B32 -> 0 | D12: 25 | E12: 0 | F12: ='Month Rank'!H13 -> 1 | H12: 1
B13: January | C13: =Data!B16+Data!B33 -> 0 | D13: 25 | E13: 0 | F13: ='Month Rank'!H14 -> 1 | H13: 1
B14: February | C14: =Data!B17+Data!B34 -> 0 | D14: 24 | E14: 0 | F14: ='Month Rank'!H15 -> 1 | H14: 1
B15: March | C15: =Data!B18+Data!B35 -> 0 | D15: 27 | E15: 0 | F15: ='Month Rank'!H16 -> 1 | H15: 1
A16: =Data!C6 -> 2017/18 | B16: April | C16: =Data!C7+Data!C24 -> 0 | D16: =INDEX(DispensingDays,MATCH(B16,DDMonth,0),MATCH($A$16,DDYear,0)) -> 23 | E16: =IF(C16=0,0,E4+1) -> 0 | F16: ='Month Rank'!H5 -> 1 | H16: =F4-F16 -> 0
B17: May | C17: =Data!C8+Data!C25 -> 0 | D17: 25 | E17: =IF(C17=0,0,E5+1) -> 0 | F17: ='Month Rank'!H6 -> 1 | H17: =F5-F17 -> 0
B18: June | C18: =Data!C9+Data!C26 -> 0 | D18: 26 | E18: 0 | F18: ='Month Rank'!H7 -> 1 | H18: 0
B19: July | C19: =Data!C10+Data!C27 -> 0 | D19: 26 | E19: 0 | F19: ='Month Rank'!H8 -> 1 | H19: 0
B20: August | C20: =Data!C11+Data!C28 -> 0 | D20: 26 | E20: 0 | F20: ='Month Rank'!H9 -> 1 | H20: 0
B21: September | C21: =Data!C12+Data!C29 -> 0 | D21: 26 | E21: 0 | F21: ='Month Rank'!H10 -> 1 | H21: 0
B22: October | C22: =Data!C13+Data!C30 -> 0 | D22: 26 | E22: 0 | F22: ='Month Rank'!H11 -> 1 | H22: 0
B23: November | C23: =Data!C14+Data!C31 -> 0 | D23: 26 | E23: 0 | F23: ='Month Rank'!H12 -> 1 | H23: 0
B24: December | C24: =Data!C15+Data!C32 -> 0 | D24: 24 | E24: 0 | F24: ='Month Rank'!H13 -> 1 | H24: 0
B25: January | C25: =Data!C16+Data!C33 -> 0 | D25: 26 | E25: 0 | F25: ='Month Rank'!H14 -> 1 | H25: 0
B26: February | C26: =Data!C17+Data!C34 -> 0 | D26: 24 | E26: 0 | F26: ='Month Rank'!H15 -> 1 | H26: 0
B27: March | C27: =Data!C18+Data!C35 -> 0 | D27: 26 | E27: 0 | F27: ='Month Rank'!H16 -> 1 | H27: 0
A28: =Data!D6 -> 2018/19 | B28: April | C28: =Data!D7+Data!D24 -> 0 | D28: =INDEX(DispensingDays,MATCH(B28,DDMonth,0),MATCH($A$28,DDYear,0)) -> 24 | E28: 0 | F28: ='Month Rank'!H5 -> 1 | H28: 0
B29: May | C29: =Data!D8+Data!D25 -> 0 | D29: 25 | E29: 0 | F29: ='Month Rank'!H6 -> 1 | H29: 0
B30: June | C30: =Data!D9+Data!D26 -> 0 | D30: 26 | E30: 0 | F30: ='Month Rank'!H7 -> 1 | H30: 0
B31: July | C31: =Data!D10+Data!D27 -> 0 | D31: 26 | E31: 0 | F31: ='Month Rank'!H8 -> 1 | H31: 0
B32: August | C32: =Data!D11+Data!D28 -> 0 | D32: 26 | E32: 0 | F32: ='Month Rank'!H9 -> 1 | H32: 0
B33: September | C33: =Data!D12+Data!D29 -> 0 | D33: 25 | E33: 0 | F33: ='Month Rank'!H10 -> 1 | H33: 0
B34: October | C34: =Data!D13+Data!D30 -> 0 | D34: 27 | E34: 0 | F34: ='Month Rank'!H11 -> 1 | H34: 0
B35: November | C35: =Data!D14+Data!D31 -> 0 | D35: 26 | E35: 0 | F35: ='Month Rank'!H12 -> 1 | H35: 0
B36: December | C36: =Data!D15+Data!D32 -> 0 | D36: 24 | E36: 0 | F36: ='Month Rank'!H13 -> 1 | H36: 0
B37: January | C37: =Data!D16+Data!D33 -> 0 | D37: 26 | E37: 0 | F37: ='Month Rank'!H14 -> 1 | H37: 0
B38: February | C38: =Data!D17+Data!D34 -> 0 | D38: 24 | E38: 0 | F38: ='Month Rank'!H15 -> 1 | H38: 0
B39: March | C39: =Data!D18+Data!D35 -> 0 | D39: 26 | E39: 0 | F39: ='Month Rank'!H16 -> 1 | H39: 0
A40: =Data!E6 -> 2019/20 | B40: April | C40: =Data!E7+Data!E24 -> 0 | D40: =INDEX(DispensingDays,MATCH(B40,DDMonth,0),MATCH($A$40,DDYear,0)) -> 24 | E40: 0 | F40: ='Month Rank'!H5 -> 1 | H40: 0
B41: May | C41: =Data!E8+Data!E25 -> 0 | D41: 25 | E41: 0 | F41: ='Month Rank'!H6 -> 1 | H41: 0
B42: June | C42: =Data!E9+Data!E26 -> 0 | D42: 25 | E42: 0 | F42: ='Month Rank'!H7 -> 1 | H42: 0
B43: July | C43: =Data!E10+Data!E27 -> 0 | D43: 27 | E43: 0 | F43: ='Month Rank'!H8 -> 1 | H43: 0
B44: August | C44: =Data!E11+Data!E28 -> 0 | D44: 26 | E44: 0 | F44: ='Month Rank'!H9 -> 1 | H44: 0
B45: September | C45: =Data!E12+Data!E29 -> 0 | D45: 25 | E45: 0 | F45: ='Month Rank'!H10 -> 1 | H45: 0
B46: October | C46: =Data!E13+Data!E30 -> 0 | D46: 27 | E46: 0 | F46: ='Month Rank'!H11 -> 1 | H46: 0
B47: November | C47: =Data!E14+Data!E31 -> 0 | D47: 26 | E47: 0 | F47: ='Month Rank'!H12 -> 1 | H47: 0
B48: December | C48: =Data!E15+Data!E32 -> 0 | D48: 24 | E48: 0 | F48: ='Month Rank'!H13 -> 1 | H48: 0
B49: January | C49: =Data!E16+Data!E33 -> 0 | D49: 26 | E49: 0 | F49: ='Month Rank'!H14 -> 1 | H49: 0
B50: February | C50: =Data!E17+Data!E34 -> 0 | D50: 25 | E50: 0 | F50: ='Month Rank'!H15 -> 1 | H50: 0
B51: March | C51: =Data!E18+Data!E35 -> 0 | D51: 26 | E51: 0 | F51: ='Month Rank'!H16 -> 1 | H51: 0
A52: =Data!F6 -> 2020/21 | B52: April | C52: =Data!F7+Data!F24 -> 0 | D52: =INDEX(DispensingDays,MATCH(B52,DDMonth,0),MATCH($A$52,DDYear,0)) -> 24 | E52: 0 | F52: ='Month Rank'!H5 -> 1 | H52: 0
B53: May | C53: =Data!F8+Data!F25 -> 0 | D53: 24 | E53: 0 | F53: ='Month Rank'!H6 -> 1 | H53: 0
B54: June | C54: =Data!F9+Data!F26 -> 0 | D54: 26 | E54: 0 | F54: ='Month Rank'!H7 -> 1 | H54: 0
B55: July | C55: =Data!F10+Data!F27 -> 0 | D55: 27 | E55: 0 | F55: ='Month Rank'!H8 -> 1 | H55: 0
B56: August | C56: =Data!F11+Data!F28 -> 0 | D56: 25 | E56: 0 | F56: ='Month Rank'!H9 -> 1 | H56: 0
B57: September | C57: =Data!F12+Data!F29 -> 0 | D57: 26 | E57: 0 | F57: ='Month Rank'!H10 -> 1 | H57: 0
B58: October | C58: =Data!F13+Data!F30 -> 0 | D58: 27 | E58: 0 | F58: ='Month Rank'!H11 -> 1 | H58: 0
B59: November | C59: =Data!F14+Data!F31 -> 0 | D59: 25 | E59: 0 | F59: ='Month Rank'!H12 -> 1 | H59: 0
B60: December | C60: =Data!F15+Data!F32 -> 0 | D60: 24 | E60: 0 | F60: ='Month Rank'!H13 -> 1 | H60: 0
B61: January | C61: =Data!F16+Data!F33 -> 0 | D61: 25 | E61: 0 | F61: ='Month Rank'!H14 -> 1 | H61: 0
B62: February | C62: =Data!F17+Data!F34 -> 0 | D62: 24 | E62: 0 | F62: ='Month Rank'!H15 -> 1 | H62: 0
B63: March | C63: =Data!F18+Data!F35 -> 0 | D63: 27 | E63: 0 | F63: ='Month Rank'!H16 -> 1 | H63: 0
A64: =Data!G6 -> 2021/22 | B64: April | C64: =Data!G7+Data!G24 -> 0 | D64: =INDEX(DispensingDays,MATCH(B64,DDMonth,0),MATCH($A$64,DDYear,0)) -> 24 | E64: =E52+1 -> 1 | F64: ='Month Rank'!H5 -> 1
B65: May | C65: =Data!G8+Data!G25 -> 0 | D65: =INDEX(DispensingDays,MATCH(B65,DDMonth,0),MATCH($A$64,DDYear,0)) -> 24 | E65: =E53+1 -> 1 | F65: ='Month Rank'!H6 -> 1
B66: June | C66: =Data!G9+Data!G26 -> 0 | D66: 26 | E66: 1 | F66: ='Month Rank'!H7 -> 1 | G66: =Forecast!$J$19+D66*Forecast!$J$20+E66*Forecast!$J$21+F66*Forecast!$J$22-Data!G26 -> 0
B67: July | C67: =Data!G10+Data!G27 -> 0 | D67: 27 | E67: 1 | F67: ='Month Rank'!H8 -> 1 | G67: =Forecast!$J$19+D67*Forecast!$J$20+E67*Forecast!$J$21+F67*Forecast!$J$22-Data!G27 -> 0
B68: August | C68: =Data!G11+Data!G28 -> 0 | D68: 25 | E68: 1 | F68: ='Month Rank'!H9 -> 1 | G68: =Forecast!$J$19+D68*Forecast!$J$20+E68*Forecast!$J$21+F68*Forecast!$J$22-Data!G28 -> 0
B69: September | C69: =Data!G12+Data!G29 -> 0 | D69: 26 | E69: 1 | F69: ='Month Rank'!H10 -> 1 | G69: =Forecast!$J$19+D69*Forecast!$J$20+E69*Forecast!$J$21+F69*Forecast!$J$22-Data!G29 -> 0
B70: October | C70: =Data!G13+Data!G30 -> 0 | D70: 26 | E70: 1 | F70: ='Month Rank'!H11 -> 1 | G70: =Forecast!$J$19+D70*Forecast!$J$20+E70*Forecast!$J$21+F70*Forecast!$J$22-Data!G30 -> 0
B71: November | D71: 26 | E71: 1 | F71: ='Month Rank'!H12 -> 1 | G71: =Forecast!$J$19+D71*Forecast!$J$20+E71*Forecast!$J$21+F71*Forecast!$J$22-Data!G31 -> 0
B72: December | D72: 24 | E72: 1 | F72: ='Month Rank'!H13 -> 1 | G72: =Forecast!$J$19+D72*Forecast!$J$20+E72*Forecast!$J$21+F72*Forecast!$J$22-Data!G32 -> 0
B73: January | D73: 24 | E73: 1 | F73: ='Month Rank'!H14 -> 1 | G73: =Forecast!$J$19+D73*Forecast!$J$20+E73*Forecast!$J$21+F73*Forecast!$J$22-Data!G33 -> 0
B74: February | D74: 24 | E74: 1 | F74: ='Month Rank'!H15 -> 1 | G74: =Forecast!$J$19+D74*Forecast!$J$20+E74*Forecast!$J$21+F74*Forecast!$J$22-Data!G34 -> 0
B75: March | D75: 27 | E75: 1 | F75: ='Month Rank'!H16 -> 1 | G75: =Forecast!$J$19+D75*Forecast!$J$20+E75*Forecast!$J$21+F75*Forecast!$J$22-Data!G35 -> 0
G77: =SUM(G64:G75)+SUM(C64:C75) -> 0

Sheet Test (hidden)
A1: SUMMARY OUTPUT
A3: Regression Statistics
A4: Multiple R | B4: 0.9467590413
A5: R Square | B5: 0.8963526823
A6: Adjusted R Square | B6: 0.8914942143
A7: Standard Error | B7: 19944088.61
A8: Observations | B8: 68
A10: ANOVA
B11: df | C11: SS | D11: MS | E11: F | F11: Significance F
A12: Regression | B12: 3 | C12: 2.201553376e+17 | D12: 7.338511253e+16 | E12: 184.4928647 | F12: 1.927185806e-31
A13: Residual | B13: 64 | C13: 2.545706692e+16 | D13: 3.977666706e+14
A14: Total | B14: 67 | C14: 2.456124045e+17
B16: Coefficients | C16: Standard Error | D16: t Stat | E16: P-value | F16: Lower 95% | G16: Upper 95% | H16: Lower 95.0% | I16: Upper 95.0%
A17: Intercept | B17: 66259929.48 | C17: 60951714.34 | D17: 1.087088857 | E17: 0.2810748127 | F17: -55505117.74 | G17: 188024976.7 | H17: -55505117.74 | I17: 188024976.7
A18: X Variable 1 | B18: 20461180.26 | C18: 2334475.022 | D18: 8.764788687 | E18: 1.458051463e-12 | F18: 15797530.28 | G18: 25124830.24 | H18: 15797530.28 | I18: 25124830.24
A19: X Variable 2 | B19: 31829427.77 | C19: 1472502.217 | D19: 21.61587765 | E19: 4.096614945e-31 | F19: 28887766.42 | G19: 34771089.11 | H19: 28887766.42 | I19: 34771089.11
A20: X Variable 3 | B20: 3483634.577 | C20: 734600.5202 | D20: 4.742216321 | E20: 1.223598951e-05 | F20: 2016101.333 | G20: 4951167.82 | H20: 2016101.333 | I20: 4951167.82
A27: 24 | B27: 6 | C27: 12 | D27: 642566770.7 | G27: =$B$17+A27*$B$18+B27*$B$19+C27*B20 -> 790108437.3 | H27: =G27-Data!G32 -> 790108437.3
A28: 26 | B28: 6 | C28: 4 | D28: 655620054.6 | G28: =$B$17+A28*$B$18+B28*$B$19+C28*B21 -> 789227182.9 | H28: =G28-Data!G33 -> 789227182.9
A29: 24 | B29: 6 | C29: 1 | D29: 604246790.3 | G29: 748304822.4 | H29: =G29-Data!G34 -> 748304822.4
A30: 26 | B30: 6 | C30: 6 | D30: 662587323.7 | G30: 789227182.9 | H30: =G30-Data!G35 -> 789227182.9

Sheet Regression Feed FUpdated
A1: Feed for running regression that updates with most recent months
A3: year | B3: Month | C3: Historical | D3: Dispensing days | E3: year | F3: month | G3: Predicted spend
A4: =Data!B6 -> 2016/17 | B4: April | C4: =Data!B7+Data!B24 -> 0 | D4: =INDEX(DispensingDays,MATCH(B4,DDMonth,0),MATCH($A$4,DDYear,0)) -> 26 | E4: =IF(C4=0,0,1) -> 0 | F4: ='Month Rank'!H5 -> 1 | H4: month rank based on data for that year, not total across few years
B5: May | C5: =Data!B8+Data!B25 -> 0 | D5: 24 | E5: 0 | F5: ='Month Rank'!H6 -> 1
B6: June | C6: =Data!B9+Data!B26 -> 0 | D6: 26 | E6: 0 | F6: ='Month Rank'!H7 -> 1
B7: July | C7: =Data!B10+Data!B27 -> 0 | D7: 26 | E7: 0 | F7: ='Month Rank'!H8 -> 1
B8: August | C8: =Data!B11+Data!B28 -> 0 | D8: 26 | E8: 0 | F8: ='Month Rank'!H9 -> 1
B9: September | C9: =Data!B12+Data!B29 -> 0 | D9: 26 | E9: 0 | F9: ='Month Rank'!H10 -> 1
B10: October | C10: =Data!B13+Data!B30 -> 0 | D10: 26 | E10: 0 | F10: ='Month Rank'!H11 -> 1
B11: November | C11: =Data!B14+Data!B31 -> 0 | D11: 26 | E11: 0 | F11: ='Month Rank'!H12 -> 1
B12: December | C12: =Data!B15+Data!B32 -> 0 | D12: 25 | E12: 0 | F12: ='Month Rank'!H13 -> 1
B13: January | C13: =Data!B16+Data!B33 -> 0 | D13: 25 | E13: 0 | F13: ='Month Rank'!H14 -> 1
B14: February | C14: =Data!B17+Data!B34 -> 0 | D14: 24 | E14: 0 | F14: ='Month Rank'!H15 -> 1
B15: March | C15: =Data!B18+Data!B35 -> 0 | D15: 27 | E15: 0 | F15: ='Month Rank'!H16 -> 1
A16: =Data!C6 -> 2017/18 | B16: April | C16: =Data!C7+Data!C24 -> 0 | D16: =INDEX(DispensingDays,MATCH(B16,DDMonth,0),MATCH($A$16,DDYear,0)) -> 23 | E16: =IF(C16=0,0,E4+1) -> 0 | F16: ='Month Rank'!H5 -> 1
B17: May | C17: =Data!C8+Data!C25 -> 0 | D17: 25 | E17: 0 | F17: ='Month Rank'!H6 -> 1
B18: June | C18: =Data!C9+Data!C26 -> 0 | D18: 26 | E18: 0 | F18: ='Month Rank'!H7 -> 1
B19: July | C19: =Data!C10+Data!C27 -> 0 | D19: 26 | E19: 0 | F19: ='Month Rank'!H8 -> 1
B20: August | C20: =Data!C11+Data!C28 -> 0 | D20: 26 | E20: 0 | F20: ='Month Rank'!H9 -> 1
B21: September | C21: =Data!C12+Data!C29 -> 0 | D21: 26 | E21: 0 | F21: ='Month Rank'!H10 -> 1
B22: October | C22: =Data!C13+Data!C30 -> 0 | D22: 26 | E22: 0 | F22: ='Month Rank'!H11 -> 1
B23: November | C23: =Data!C14+Data!C31 -> 0 | D23: 26 | E23: 0 | F23: ='Month Rank'!H12 -> 1
B24: December | C24: =Data!C15+Data!C32 -> 0 | D24: 24 | E24: 0 | F24: ='Month Rank'!H13 -> 1
B25: January | C25: =Data!C16+Data!C33 -> 0 | D25: 26 | E25: 0 | F25: ='Month Rank'!H14 -> 1
B26: February | C26: =Data!C17+Data!C34 -> 0 | D26: 24 | E26: 0 | F26: ='Month Rank'!H15 -> 1
B27: March | C27: =Data!C18+Data!C35 -> 0 | D27: 26 | E27: 0 | F27: ='Month Rank'!H16 -> 1
A28: =Data!D6 -> 2018/19 | B28: April | C28: =Data!D7+Data!D24 -> 0 | D28: =INDEX(DispensingDays,MATCH(B28,DDMonth,0),MATCH($A$28,DDYear,0)) -> 24 | E28: 0 | F28: ='Month Rank'!H5 -> 1
B29: May | C29: =Data!D8+Data!D25 -> 0 | D29: 25 | E29: 0 | F29: ='Month Rank'!H6 -> 1
B30: June | C30: =Data!D9+Data!D26 -> 0 | D30: 26 | E30: 0 | F30: ='Month Rank'!H7 -> 1
B31: July | C31: =Data!D10+Data!D27 -> 0 | D31: 26 | E31: 0 | F31: ='Month Rank'!H8 -> 1
B32: August | C32: =Data!D11+Data!D28 -> 0 | D32: 26 | E32: 0 | F32: ='Month Rank'!H9 -> 1
B33: September | C33: =Data!D12+Data!D29 -> 0 | D33: 25 | E33: 0 | F33: ='Month Rank'!H10 -> 1
B34: October | C34: =Data!D13+Data!D30 -> 0 | D34: 27 | E34: 0 | F34: ='Month Rank'!H11 -> 1
B35: November | C35: =Data!D14+Data!D31 -> 0 | D35: 26 | E35: 0 | F35: ='Month Rank'!H12 -> 1
B36: December | C36: =Data!D15+Data!D32 -> 0 | D36: 24 | E36: 0 | F36: ='Month Rank'!H13 -> 1
B37: January | C37: =Data!D16+Data!D33 -> 0 | D37: 26 | E37: 0 | F37: ='Month Rank'!H14 -> 1
B38: February | C38: =Data!D17+Data!D34 -> 0 | D38: 24 | E38: 0 | F38: ='Month Rank'!H15 -> 1
B39: March | C39: =Data!D18+Data!D35 -> 0 | D39: 26 | E39: 0 | F39: ='Month Rank'!H16 -> 1
A40: =Data!E6 -> 2019/20 | B40: April | C40: =Data!E7+Data!E24 -> 0 | D40: =INDEX(DispensingDays,MATCH(B40,DDMonth,0),MATCH($A$40,DDYear,0)) -> 24 | E40: 0 | F40: ='Month Rank'!H5 -> 1
B41: May | C41: =Data!E8+Data!E25 -> 0 | D41: 25 | E41: 0 | F41: ='Month Rank'!H6 -> 1
B42: June | C42: =Data!E9+Data!E26 -> 0 | D42: 25 | E42: 0 | F42: ='Month Rank'!H7 -> 1
B43: July | C43: =Data!E10+Data!E27 -> 0 | D43: 27 | E43: 0 | F43: ='Month Rank'!H8 -> 1
B44: August | C44: =Data!E11+Data!E28 -> 0 | D44: 26 | E44: 0 | F44: ='Month Rank'!H9 -> 1
B45: September | C45: =Data!E12+Data!E29 -> 0 | D45: 25 | E45: 0 | F45: ='Month Rank'!H10 -> 1
B46: October | C46: =Data!E13+Data!E30 -> 0 | D46: 27 | E46: 0 | F46: ='Month Rank'!H11 -> 1
B47: November | C47: =Data!E14+Data!E31 -> 0 | D47: 26 | E47: 0 | F47: ='Month Rank'!H12 -> 1
B48: December | C48: =Data!E15+Data!E32 -> 0 | D48: 24 | E48: 0 | F48: ='Month Rank'!H13 -> 1
B49: January | C49: =Data!E16+Data!E33 -> 0 | D49: 26 | E49: 0 | F49: ='Month Rank'!H14 -> 1
B50: February | C50: =Data!E17+Data!E34 -> 0 | D50: 25 | E50: 0 | F50: ='Month Rank'!H15 -> 1
B51: March | C51: =Data!E18+Data!E35 -> 0 | D51: 26 | E51: 0 | F51: ='Month Rank'!H16 -> 1
A52: =Data!F6 -> 2020/21 | B52: April | C52: =Data!F7+Data!F24 -> 0 | D52: =INDEX(DispensingDays,MATCH(B52,DDMonth,0),MATCH($A$52,DDYear,0)) -> 24 | E52: 0 | F52: ='Month Rank'!H5 -> 1
B53: May | C53: =Data!F8+Data!F25 -> 0 | D53: 24 | E53: 0 | F53: ='Month Rank'!H6 -> 1
B54: June | C54: =Data!F9+Data!F26 -> 0 | D54: 26 | E54: 0 | F54: ='Month Rank'!H7 -> 1
B55: July | C55: =Data!F10+Data!F27 -> 0 | D55: 27 | E55: 0 | F55: ='Month Rank'!H8 -> 1
B56: August | C56: =Data!F11+Data!F28 -> 0 | D56: 25 | E56: 0 | F56: ='Month Rank'!H9 -> 1
B57: September | C57: =Data!F12+Data!F29 -> 0 | D57: 26 | E57: 0 | F57: ='Month Rank'!H10 -> 1
B58: October | C58: =Data!F13+Data!F30 -> 0 | D58: 27 | E58: 0 | F58: ='Month Rank'!H11 -> 1
B59: November | C59: =Data!F14+Data!F31 -> 0 | D59: 25 | E59: 0 | F59: ='Month Rank'!H12 -> 1
B60: December | C60: =Data!F15+Data!F32 -> 0 | D60: 24 | E60: 0 | F60: ='Month Rank'!H13 -> 1
B61: January | C61: =Data!F16+Data!F33 -> 0 | D61: 25 | E61: 0 | F61: ='Month Rank'!H14 -> 1
B62: February | C62: =Data!F17+Data!F34 -> 0 | D62: 24 | E62: 0 | F62: ='Month Rank'!H15 -> 1
B63: March | C63: =Data!F18+Data!F35 -> 0 | D63: 27 | E63: 0 | F63: ='Month Rank'!H16 -> 1
A64: =Data!G6 -> 2021/22 | B64: April | C64: =Data!G7+Data!G24 -> 0 | D64: =INDEX(DispensingDays,MATCH(B64,DDMonth,0),MATCH($A$64,DDYear,0)) -> 24 | E64: =E52+1 -> 1 | F64: ='Month Rank'!H5 -> 1 | G64: =IF(C64<>"","",'Forecast Updated'!$J$22+D64*'Forecast Updated'!$J$23+E64*'Forecast Updated'!$J$24+F64*'Forecast Updated'!$J$25-Data!G24) -> 
B65: May | C65: =Data!G8+Data!G25 -> 0 | D65: 24 | E65: 1 | F65: ='Month Rank'!H6 -> 1 | G65: =IF(C65<>"","",'Forecast Updated'!$J$22+D65*'Forecast Updated'!$J$23+E65*'Forecast Updated'!$J$24+F65*'Forecast Updated'!$J$25-Data!G25) -> 
B66: June | C66: =Data!G9+Data!G26 -> 0 | D66: 26 | E66: 1 | F66: ='Month Rank'!H7 -> 1 | G66: =IF(C66<>"","",'Forecast Updated'!$J$22+D66*'Forecast Updated'!$J$23+E66*'Forecast Updated'!$J$24+F66*'Forecast Updated'!$J$25-Data!G26) -> 
B67: July | C67: =Data!G10+Data!G27 -> 0 | D67: 27 | E67: 1 | F67: ='Month Rank'!H8 -> 1 | G67: =IF(C67<>"","",'Forecast Updated'!$J$22+D67*'Forecast Updated'!$J$23+E67*'Forecast Updated'!$J$24+F67*'Forecast Updated'!$J$25-Data!G27) -> 
B68: August | C68: =Data!G11+Data!G28 -> 0 | D68: 25 | E68: 1 | F68: ='Month Rank'!H9 -> 1 | G68: =IF(C68<>"","",'Forecast Updated'!$J$22+D68*'Forecast Updated'!$J$23+E68*'Forecast Updated'!$J$24+F68*'Forecast Updated'!$J$25-Data!G28) -> 
B69: September | C69: =Data!G12+Data!G29 -> 0 | D69: 26 | E69: 1 | F69: ='Month Rank'!H10 -> 1 | G69: =IF(C69<>"","",'Forecast Updated'!$J$22+D69*'Forecast Updated'!$J$23+E69*'Forecast Updated'!$J$24+F69*'Forecast Updated'!$J$25-Data!G29) -> 
B70: October | C70: =Data!G13+Data!G30 -> 0 | D70: 26 | E70: 1 | F70: ='Month Rank'!H11 -> 1 | G70: =IF(C70<>"","",'Forecast Updated'!$J$22+D70*'Forecast Updated'!$J$23+E70*'Forecast Updated'!$J$24+F70*'Forecast Updated'!$J$25-Data!G30) -> 
B71: November | D71: 26 | E71: 1 | F71: ='Month Rank'!H12 -> 1 | G71: =IF(C71<>"","",'Forecast Updated'!$J$22+D71*'Forecast Updated'!$J$23+E71*'Forecast Updated'!$J$24+F71*'Forecast Updated'!$J$25-Data!G31) -> 0
B72: December | D72: 24 | E72: 1 | F72: ='Month Rank'!H13 -> 1 | G72: =IF(C72<>"","",'Forecast Updated'!$J$22+D72*'Forecast Updated'!$J$23+E72*'Forecast Updated'!$J$24+F72*'Forecast Updated'!$J$25-Data!G32) -> 0
B73: January | D73: 24 | E73: 1 | F73: ='Month Rank'!H14 -> 1 | G73: =IF(C73<>"","",'Forecast Updated'!$J$22+D73*'Forecast Updated'!$J$23+E73*'Forecast Updated'!$J$24+F73*'Forecast Updated'!$J$25-Data!G33) -> 0
B74: February | D74: 24 | E74: 1 | F74: ='Month Rank'!H15 -> 1 | G74: =IF(C74<>"","",'Forecast Updated'!$J$22+D74*'Forecast Updated'!$J$23+E74*'Forecast Updated'!$J$24+F74*'Forecast Updated'!$J$25-Data!G34) -> 0
B75: March | D75: 27 | E75: 1 | F75: ='Month Rank'!H16 -> 1 | G75: =IF(C75<>"","",'Forecast Updated'!$J$22+D75*'Forecast Updated'!$J$23+E75*'Forecast Updated'!$J$24+F75*'Forecast Updated'!$J$25-Data!G35) -> 0
G77: =SUM(G64:G75)+SUM(C64:C75) -> 0

Sheet Policy - not updated (hidden)
A1: Policy Impact | C1: Taken from 20130221 National forecast incl DCMC
A3: Policy changes used in the model - internal estimate
A5: Date | B5: Type | C5: Impact per year | D5: Per month
A6: 2003-12-01 | B6: 1st generic | C6: -150 | D6: =C6/12 -> -12.5
A7: 2004-10-01 | B7: 2nd generic | C7: -150 | D7: -12.5
A8: 2005-02-01 | B8: PPRS 05 | C8: =-1800/5 -> -360 | D8: -30
A9: 2005-04-01 | B9: CatM1 | C9: -300 | D9: -25
A10: 2006-10-01 | B10: CatM2 | C10: -300 | D10: -25
A11: 2007-07-01 | B11: CatM technical adju | C11: -120 | D11: -10
A12: 2007-10-01 | B12: CatM3 | C12: -400 | D12: -33.33333333
A13: 2008-10-01 | B13: CatM4 | C13: -130 | D13: -10.83333333
A14: 2009-03-01 | B14: PPRS 09 (3.9%) | C14: -160 | D14: -13.33333333
A15: 2009-10-01 | B15: CatM5 | C15: -80 | D15: -6.666666667
A16: 2010-02-01 | B16: PPRS 09 (1.9%) | C16: -80 | D16: -6.666666667
A17: 2010-10-01 | B17: CatM6 | C17: -240 | D17: -20
A18: 2011-01-01 | B18: PPRS09 | C18: 5.7 | D18: 0.475
A19: 2011-04-01 | B19: CatM7 | C19: -90 | D19: -7.5
A20: 2011-04-01 | B20: QP indicators & QIPP | C20: -150 | D20: -12.5
A21: 2011-10-01 | B21: CatM8 | C21: -156 | D21: -13
A22: 2012-04-01 | B22: CatM9 | C22: -40 | D22: -3.333333333
A23: 2012-04-01 | B23: QP indicators & QIPP | C23: -100 | D23: -8.333333333
A24: 2012-06-01 | B24: Atorvastatin | C24: -266.9128911 | D24: -22.24274092
A25: 2012-10-01 | B25: CatM10 | C25: -185 | D25: =C25/12 -> -15.41666667
A27: Restricted Policy
